{"text_format":"3","workbook":"xlsx","n_sheets":2,"sheets":["START","PERSÖNLICHES MONATSBUDGET"],"read":"whole","date_system":"1900"}

{"sheet":"START","index":0,"n_rows":7,"n_cols":2,"rows_kept":7}
[null,"ÜBER DIESE VORLAGE"]
[null,"Verwenden Sie dieses Arbeitsblatt für ein persönliches Monatsbudget, um Ihre erwarteten und tatsächlichen Einkünfte und die erwarteten und tatsächlichen Kosten nachzuverfolgen."]
[null,"Geben Sie die in verschiedenen Kategorien angefallenen Ausgaben in entsprechenden Tabellen ein."]
[null,"Der erwarteter Saldo, der tatsächlicher Saldo und die Differenz werden automatisch berechnet."]
[null,"Anmerkung: "]
[null,"Zusätzliche Anweisungen wurden in Spalte A auf dem Arbeitsblatt PERSÖNLICHES MONATSBUDGET bereitgestellt. Diese Texte wurden absichtlich ausgeblendet. Um die Texte zu entfernen, wählen Sie Spalte A und dann ZELLEN LÖSCHEN aus. Um die Texte einzublenden, wählen Sie Spalte A aus, und ändern Sie die Schriftfarbe."]
[null,"Um mehr über Tabellen zu erfahren, drücken Sie auf dem Arbeitsblatt die UMSCHALTTASTE und dann F10 innerhalb einer Tabelle, wählen Sie die Option TABELLE und dann ALTERNATIVTEXT aus."]

{"sheet":"PERSÖNLICHES MONATSBUDGET","index":1,"n_rows":64,"n_cols":10,"rows_kept":64,"merged":[[3,1,5,1],[3,2,3,3],[3,6,4,8],[3,9,4,9],[4,2,4,3],[5,2,5,3],[5,6,6,8],[5,9,6,9],[7,1,9,1],[7,2,7,3],[7,6,8,8],[7,9,8,9],[8,2,8,3],[9,2,9,3],[22,6,22,9],[23,1,23,4],[31,6,31,9],[33,1,33,4],[38,6,38,9],[40,1,40,4],[44,6,44,9],[46,1,46,4],[50,6,50,9],[54,1,54,4],[57,6,57,9],[58,6,59,8],[58,9,59,9],[60,6,61,8],[60,9,61,9],[62,6,63,8],[62,9,63,9],[64,1,64,4]]}
["Erstellen Sie auf diesem Arbeitsblatt ein persönliches Monatsbudget. Nützliche Anweisungen zum Verwenden dieses Arbeitsblatts befinden sich in Zellen in dieser Spalte. Drücken Sie die NACH-UNTEN-TASTE, um anzufangen."]
["Der Titel dieses Arbeitsblatts befindet sich in der Zelle rechts. Die nächste Anweisung finden Sie in Zelle A4.","PERSÖNLICHES MONATSBUDGET"]
[]
["Die Beschriftung \"Erwartetes Monatseinkommen\" befindet sich in der Zelle rechts. Geben Sie Einkünfte 1 in Zelle E4 und Zusatzeinkünfte in E5 ein, um das Summe der monatlichen Einkünfte in E6 zu berechnen. Die nächste Anweisung finden Sie in Zelle A6.","ERWARTETES MONATSEINKOMMEN","Einkünfte 1",null,{"v":4300,"d":"4,300.00 €"},null,"ERWARTETER SALDO \n(Erwartete Einkünfte minus Ausgaben)",null,null,{"$f":"E6-J59","v":{"v":3405,"d":"3,405.00 €"}}]
[null,null,"Zusatzeinkünfte",null,{"v":300,"d":"300.00 €"}]
["Der erwarteter Saldo wird in Zelle J4, der tatsächlicher Saldo in J6 und die Differenz in J8 automatisch berechnet. Die nächste Anweisung finden Sie in Zelle A8.",null,"Summe der monatlichen Einkünfte",null,{"$f":"SUM(E4:E5)","v":{"v":4600,"d":"4,600.00 €"}},null,"TATSÄCHLICHER SALDO \n(Tatsächliche Einkünfte minus Ausgaben)",null,null,{"$f":"E10-J61","v":{"v":3064,"d":"3,064.00 €"}}]
[]
["Die Beschriftung \"Tatsächliches Monatseinkommen\" befindet sich in der Zelle rechts. Geben Sie Einkünfte 1 in Zelle E8 und Zusatzeinkünfte in E9 ein, um das Summe der monatlichen Einkünfte in E10 zu berechnen. Die nächste Anweisung finden Sie in Zelle A12.","TATSÄCHLICHES MONATSEINKOMMEN","Einkünfte 1",null,{"v":4000,"d":"4,000.00 €"},null,"DIFFERENZ \n(Tatsächlich abzüglich erwartet)",null,null,{"$f":"J6-J4","v":{"v":-341,"d":"-341.00 €"}}]
[null,null,"Zusatzeinkünfte",null,{"v":300,"d":"300.00 €"}]
[null,null,"Summe der monatlichen Einkünfte",null,{"$f":"SUM(E8:E9)","v":{"v":4300,"d":"4,300.00 €"}}]
[]
["Geben Sie Details in der Tabelle \"Wohnen\" ab der Zelle rechts und in der Tabelle \"Unterhaltung\" ab Zelle G12 ein. Die nächste Anweisung finden Sie in Zelle A25.","WOHNEN","Erwartete Kosten","Tatsächliche Kosten","Differenz",null,"UNTERHALTUNG","Erwartete Kosten","Tatsächliche Kosten","Differenz"]
[null,"Hypothek oder Miete",{"v":1000,"d":"1,000.00 €"},{"v":1000,"d":"1,000.00 €"},{"$f":"Wohnen[[#This Row],[Erwartete Kosten]]-Wohnen[[#This Row],[Tatsächliche Kosten]]","v":{"v":0,"d":"0.00 €"}},null,"Video/DVD",null,null,{"$f":"Unterhaltung[[#This Row],[Erwartete Kosten]]-Unterhaltung[[#This Row],[Tatsächliche Kosten]]","v":{"v":0,"d":"0.00 €"}}]
[null,"Telefon",{"v":54,"d":"54.00 €"},{"v":100,"d":"100.00 €"},{"$f":"Wohnen[[#This Row],[Erwartete Kosten]]-Wohnen[[#This Row],[Tatsächliche Kosten]]","v":{"v":-46,"d":"-46.00 €"}},null,"CDs",null,null,{"$f":"Unterhaltung[[#This Row],[Erwartete Kosten]]-Unterhaltung[[#This Row],[Tatsächliche Kosten]]","v":{"v":0,"d":"0.00 €"}}]
[null,"Strom",{"v":44,"d":"44.00 €"},{"v":56,"d":"56.00 €"},{"$f":"Wohnen[[#This Row],[Erwartete Kosten]]-Wohnen[[#This Row],[Tatsächliche Kosten]]","v":{"v":-12,"d":"-12.00 €"}},null,"Filme",null,null,{"$f":"Unterhaltung[[#This Row],[Erwartete Kosten]]-Unterhaltung[[#This Row],[Tatsächliche Kosten]]","v":{"v":0,"d":"0.00 €"}}]
[null,"Gas",{"v":22,"d":"22.00 €"},{"v":28,"d":"28.00 €"},{"$f":"Wohnen[[#This Row],[Erwartete Kosten]]-Wohnen[[#This Row],[Tatsächliche Kosten]]","v":{"v":-6,"d":"-6.00 €"}},null,"Konzerte",null,null,{"$f":"Unterhaltung[[#This Row],[Erwartete Kosten]]-Unterhaltung[[#This Row],[Tatsächliche Kosten]]","v":{"v":0,"d":"0.00 €"}}]
[null,"Wasser und Abwasser",{"v":8,"d":"8.00 €"},{"v":8,"d":"8.00 €"},{"$f":"Wohnen[[#This Row],[Erwartete Kosten]]-Wohnen[[#This Row],[Tatsächliche Kosten]]","v":{"v":0,"d":"0.00 €"}},null,"Sportveranstaltungen",null,null,{"$f":"Unterhaltung[[#This Row],[Erwartete Kosten]]-Unterhaltung[[#This Row],[Tatsächliche Kosten]]","v":{"v":0,"d":"0.00 €"}}]
[null,"Kabelfernsehen",{"v":34,"d":"34.00 €"},{"v":34,"d":"34.00 €"},{"$f":"Wohnen[[#This Row],[Erwartete Kosten]]-Wohnen[[#This Row],[Tatsächliche Kosten]]","v":{"v":0,"d":"0.00 €"}},null,"Theater",null,null,{"$f":"Unterhaltung[[#This Row],[Erwartete Kosten]]-Unterhaltung[[#This Row],[Tatsächliche Kosten]]","v":{"v":0,"d":"0.00 €"}}]
[null,"Müllabfuhr",{"v":10,"d":"10.00 €"},{"v":10,"d":"10.00 €"},{"$f":"Wohnen[[#This Row],[Erwartete Kosten]]-Wohnen[[#This Row],[Tatsächliche Kosten]]","v":{"v":0,"d":"0.00 €"}},null,"Sonstiges",null,null,{"$f":"Unterhaltung[[#This Row],[Erwartete Kosten]]-Unterhaltung[[#This Row],[Tatsächliche Kosten]]","v":{"v":0,"d":"0.00 €"}}]
[null,"Wartung oder Reparaturen",{"v":23,"d":"23.00 €"},{"v":0,"d":"0.00 €"},{"$f":"Wohnen[[#This Row],[Erwartete Kosten]]-Wohnen[[#This Row],[Tatsächliche Kosten]]","v":{"v":23,"d":"23.00 €"}},null,"Sonstiges",null,null,{"$f":"Unterhaltung[[#This Row],[Erwartete Kosten]]-Unterhaltung[[#This Row],[Tatsächliche Kosten]]","v":{"v":0,"d":"0.00 €"}}]
[null,"Lehrmittel",{"v":0,"d":"0.00 €"},{"v":0,"d":"0.00 €"},{"$f":"Wohnen[[#This Row],[Erwartete Kosten]]-Wohnen[[#This Row],[Tatsächliche Kosten]]","v":{"v":0,"d":"0.00 €"}},null,"Sonstiges",null,null,{"$f":"Unterhaltung[[#This Row],[Erwartete Kosten]]-Unterhaltung[[#This Row],[Tatsächliche Kosten]]","v":{"v":0,"d":"0.00 €"}}]
[null,"Sonstiges",{"v":0,"d":"0.00 €"},{"v":0,"d":"0.00 €"},{"$f":"Wohnen[[#This Row],[Erwartete Kosten]]-Wohnen[[#This Row],[Tatsächliche Kosten]]","v":{"v":0,"d":"0.00 €"}},null,"Zwischensumme",null,null,{"$f":"SUBTOTAL(109,Unterhaltung[Differenz])","v":{"v":0,"d":"0.00 €"}}]
[null,"Zwischensumme",null,null,{"$f":"SUBTOTAL(109,Wohnen[Differenz])","v":{"v":-41,"d":"-41.00 €"}}]
[{"$nulls":6},"DARLEHEN","Erwartete Kosten","Tatsächliche Kosten","Differenz"]
["Geben Sie Details in der Tabelle \"Verkehrskosten\" ab der Zelle rechts und in der Tabelle \"Darlehen\" ab Zelle G24 ein. Die nächste Anweisung finden Sie in Zelle A35.","VERKEHRSKOSTEN","Erwartete Kosten","Tatsächliche Kosten","Differenz",null,"Privat",null,null,{"$f":"Darlehen[[#This Row],[Erwartete Kosten]]-Darlehen[[#This Row],[Tatsächliche Kosten]]","v":{"v":0,"d":"0.00 €"}}]
[null,"Kfz-Kosten",null,null,{"$f":"Verkehrskosten[[#This Row],[Erwartete Kosten]]-Verkehrskosten[[#This Row],[Tatsächliche Kosten]]","v":{"v":0,"d":"0.00 €"}},null,"Studium",null,null,{"$f":"Darlehen[[#This Row],[Erwartete Kosten]]-Darlehen[[#This Row],[Tatsächliche Kosten]]","v":{"v":0,"d":"0.00 €"}}]
[null,"Bus-/Taxikosten",null,null,{"$f":"Verkehrskosten[[#This Row],[Erwartete Kosten]]-Verkehrskosten[[#This Row],[Tatsächliche Kosten]]","v":{"v":0,"d":"0.00 €"}},null,"Kreditkarte",null,null,{"$f":"Darlehen[[#This Row],[Erwartete Kosten]]-Darlehen[[#This Row],[Tatsächliche Kosten]]","v":{"v":0,"d":"0.00 €"}}]
[null,"Versicherungen",null,null,{"$f":"Verkehrskosten[[#This Row],[Erwartete Kosten]]-Verkehrskosten[[#This Row],[Tatsächliche Kosten]]","v":{"v":0,"d":"0.00 €"}},null,"Kreditkarte",null,null,{"$f":"Darlehen[[#This Row],[Erwartete Kosten]]-Darlehen[[#This Row],[Tatsächliche Kosten]]","v":{"v":0,"d":"0.00 €"}}]
[null,"Kfz-Steuer",null,null,{"$f":"Verkehrskosten[[#This Row],[Erwartete Kosten]]-Verkehrskosten[[#This Row],[Tatsächliche Kosten]]","v":{"v":0,"d":"0.00 €"}},null,"Kreditkarte",null,null,{"$f":"Darlehen[[#This Row],[Erwartete Kosten]]-Darlehen[[#This Row],[Tatsächliche Kosten]]","v":{"v":0,"d":"0.00 €"}}]
[null,"Kraftstoff",null,null,{"$f":"Verkehrskosten[[#This Row],[Erwartete Kosten]]-Verkehrskosten[[#This Row],[Tatsächliche Kosten]]","v":{"v":0,"d":"0.00 €"}},null,"Sonstiges",null,null,{"$f":"Darlehen[[#This Row],[Erwartete Kosten]]-Darlehen[[#This Row],[Tatsächliche Kosten]]","v":{"v":0,"d":"0.00 €"}}]
[null,"Wartung",null,null,{"$f":"Verkehrskosten[[#This Row],[Erwartete Kosten]]-Verkehrskosten[[#This Row],[Tatsächliche Kosten]]","v":{"v":0,"d":"0.00 €"}},null,"Zwischensumme",null,null,{"$f":"SUBTOTAL(109,Darlehen[Differenz])","v":{"v":0,"d":"0.00 €"}}]
[null,"Sonstiges",null,null,{"$f":"Verkehrskosten[[#This Row],[Erwartete Kosten]]-Verkehrskosten[[#This Row],[Tatsächliche Kosten]]","v":{"v":0,"d":"0.00 €"}}]
[null,"Zwischensumme",null,null,{"$f":"SUBTOTAL(109,Verkehrskosten[Differenz])","v":{"v":0,"d":"0.00 €"}},null,"STEUERN","Erwartete Kosten","Tatsächliche Kosten","Differenz"]
[{"$nulls":6},"EkSt",null,null,{"$f":"Steuern[[#This Row],[Erwartete Kosten]]-Steuern[[#This Row],[Tatsächliche Kosten]]","v":{"v":0,"d":"0.00 €"}}]
["Geben Sie Details in der Tabelle \"Versicherungen\" ab der Zelle rechts und in der Tabelle \"Steuern\" ab Zelle G33 ein. Die nächste Anweisung finden Sie in Zelle A42.","VERSICHERUNGEN","Erwartete Kosten","Tatsächliche Kosten","Differenz",null,"USt",null,null,{"$f":"Steuern[[#This Row],[Erwartete Kosten]]-Steuern[[#This Row],[Tatsächliche Kosten]]","v":{"v":0,"d":"0.00 €"}}]
[null,"Haus",null,null,{"$f":"Versicherungen[[#This Row],[Erwartete Kosten]]-Versicherungen[[#This Row],[Tatsächliche Kosten]]","v":{"v":0,"d":"0.00 €"}},null,"Kommunalsteuern",null,null,{"$f":"Steuern[[#This Row],[Erwartete Kosten]]-Steuern[[#This Row],[Tatsächliche Kosten]]","v":{"v":0,"d":"0.00 €"}}]
[null,"Krankenversicherung",null,null,{"$f":"Versicherungen[[#This Row],[Erwartete Kosten]]-Versicherungen[[#This Row],[Tatsächliche Kosten]]","v":{"v":0,"d":"0.00 €"}},null,"Sonstiges",null,null,{"$f":"Steuern[[#This Row],[Erwartete Kosten]]-Steuern[[#This Row],[Tatsächliche Kosten]]","v":{"v":0,"d":"0.00 €"}}]
[null,"Lebensversicherung",null,null,{"$f":"Versicherungen[[#This Row],[Erwartete Kosten]]-Versicherungen[[#This Row],[Tatsächliche Kosten]]","v":{"v":0,"d":"0.00 €"}},null,"Zwischensumme",null,null,{"$f":"SUBTOTAL(109,Steuern[Differenz])","v":{"v":0,"d":"0.00 €"}}]
[null,"Sonstiges",null,null,{"$f":"Versicherungen[[#This Row],[Erwartete Kosten]]-Versicherungen[[#This Row],[Tatsächliche Kosten]]","v":{"v":0,"d":"0.00 €"}}]
[null,"Zwischensumme",null,null,{"$f":"SUBTOTAL(109,Versicherungen[Differenz])","v":{"v":0,"d":"0.00 €"}},null,"SPAREINLAGEN ODER KAPITALANLAGEN","Erwartete Kosten","Tatsächliche Kosten","Differenz"]
[{"$nulls":6},"Altersvorsorgekonto",null,null,{"$f":"Spareinlagen[[#This Row],[Erwartete Kosten]]-Spareinlagen[[#This Row],[Tatsächliche Kosten]]","v":{"v":0,"d":"0.00 €"}}]
["Geben Sie Details in der Tabelle \"Essen\" ab der Zelle rechts und in der Tabelle \"Spareinlagen\" ab Zelle G40 ein. Die nächste Anweisung finden Sie in Zelle A48.","ESSEN","Erwartete Kosten","Tatsächliche Kosten","Differenz",null,"Anlagekonto",null,null,{"$f":"Spareinlagen[[#This Row],[Erwartete Kosten]]-Spareinlagen[[#This Row],[Tatsächliche Kosten]]","v":{"v":0,"d":"0.00 €"}}]
[null,"Lebensmittel",null,null,{"$f":"Essen[[#This Row],[Erwartete Kosten]]-Essen[[#This Row],[Tatsächliche Kosten]]","v":{"v":0,"d":"0.00 €"}},null,"Sonstiges",null,null,{"$f":"Spareinlagen[[#This Row],[Erwartete Kosten]]-Spareinlagen[[#This Row],[Tatsächliche Kosten]]","v":{"v":0,"d":"0.00 €"}}]
[null,"Ausgehen",null,null,{"$f":"Essen[[#This Row],[Erwartete Kosten]]-Essen[[#This Row],[Tatsächliche Kosten]]","v":{"v":0,"d":"0.00 €"}},null,"Zwischensumme",null,null,{"$f":"SUBTOTAL(109,Spareinlagen[Differenz])","v":{"v":0,"d":"0.00 €"}}]
[null,"Sonstiges",null,null,{"$f":"Essen[[#This Row],[Erwartete Kosten]]-Essen[[#This Row],[Tatsächliche Kosten]]","v":{"v":0,"d":"0.00 €"}}]
[null,"Zwischensumme",null,null,{"$f":"SUBTOTAL(109,Essen[Differenz])","v":{"v":0,"d":"0.00 €"}},null,"GESCHENKE UND SPENDEN","Erwartete Kosten","Tatsächliche Kosten","Differenz"]
[{"$nulls":6},"Spenden 1",null,null,{"$f":"Geschenke[[#This Row],[Erwartete Kosten]]-Geschenke[[#This Row],[Tatsächliche Kosten]]","v":{"v":0,"d":"0.00 €"}}]
["Geben Sie Details in der Tabelle \"Haustiere\" ab der Zelle rechts und in der Tabelle \"Geschenke\" ab Zelle G46 ein. Die nächste Anweisung finden Sie in Zelle A56.","HAUSTIERE","Erwartete Kosten","Tatsächliche Kosten","Differenz",null,"Spenden 2",null,null,{"$f":"Geschenke[[#This Row],[Erwartete Kosten]]-Geschenke[[#This Row],[Tatsächliche Kosten]]","v":{"v":0,"d":"0.00 €"}}]
[null,"Essen",null,null,{"$f":"Haustiere[[#This Row],[Erwartete Kosten]]-Haustiere[[#This Row],[Tatsächliche Kosten]]","v":{"v":0,"d":"0.00 €"}},null,"Spenden 3",null,null,{"$f":"Geschenke[[#This Row],[Erwartete Kosten]]-Geschenke[[#This Row],[Tatsächliche Kosten]]","v":{"v":0,"d":"0.00 €"}}]
[null,"Arztkosten",null,null,{"$f":"Haustiere[[#This Row],[Erwartete Kosten]]-Haustiere[[#This Row],[Tatsächliche Kosten]]","v":{"v":0,"d":"0.00 €"}},null,"Zwischensumme",null,null,{"$f":"SUBTOTAL(109,Geschenke[Differenz])","v":{"v":0,"d":"0.00 €"}}]
[null,"Fellpflege",null,null,{"$f":"Haustiere[[#This Row],[Erwartete Kosten]]-Haustiere[[#This Row],[Tatsächliche Kosten]]","v":{"v":0,"d":"0.00 €"}}]
[null,"Spielzeuge",null,null,{"$f":"Haustiere[[#This Row],[Erwartete Kosten]]-Haustiere[[#This Row],[Tatsächliche Kosten]]","v":{"v":0,"d":"0.00 €"}},null,"RECHTSKOSTEN","Erwartete Kosten","Tatsächliche Kosten","Differenz"]
[null,"Sonstiges",null,null,{"$f":"Haustiere[[#This Row],[Erwartete Kosten]]-Haustiere[[#This Row],[Tatsächliche Kosten]]","v":{"v":0,"d":"0.00 €"}},null,"Anwalt",null,null,{"$f":"Rechtskosten[[#This Row],[Erwartete Kosten]]-Rechtskosten[[#This Row],[Tatsächliche Kosten]]","v":{"v":0,"d":"0.00 €"}}]
[null,"Zwischensumme",null,null,{"$f":"SUBTOTAL(109,Haustiere[Differenz])","v":{"v":0,"d":"0.00 €"}},null,"Unterhalt",null,null,{"$f":"Rechtskosten[[#This Row],[Erwartete Kosten]]-Rechtskosten[[#This Row],[Tatsächliche Kosten]]","v":{"v":0,"d":"0.00 €"}}]
[{"$nulls":6},"Zahlungen für Pfändungen oder Gerichtsurteile",null,null,{"$f":"Rechtskosten[[#This Row],[Erwartete Kosten]]-Rechtskosten[[#This Row],[Tatsächliche Kosten]]","v":{"v":0,"d":"0.00 €"}}]
["Geben Sie Details in der Tabelle \"Körperpflege\" ab der Zelle rechts und in der Tabelle \"Rechtskosten\" ab Zelle G52 ein. Die nächste Anweisung finden Sie in Zelle A59.","KÖRPERPFLEGE","Erwartete Kosten","Tatsächliche Kosten","Differenz",null,"Sonstiges",null,null,{"$f":"Rechtskosten[[#This Row],[Erwartete Kosten]]-Rechtskosten[[#This Row],[Tatsächliche Kosten]]","v":{"v":0,"d":"0.00 €"}}]
[null,"Arztkosten",null,null,{"$f":"Körperpflege[[#This Row],[Erwartete Kosten]]-Körperpflege[[#This Row],[Tatsächliche Kosten]]","v":{"v":0,"d":"0.00 €"}},null,"Zwischensumme",null,null,{"$f":"SUBTOTAL(109,Rechtskosten[Differenz])","v":{"v":0,"d":"0.00 €"}}]
[null,"Haare/Nägel",null,null,{"$f":"Körperpflege[[#This Row],[Erwartete Kosten]]-Körperpflege[[#This Row],[Tatsächliche Kosten]]","v":{"v":0,"d":"0.00 €"}}]
["Die Summe der erwarteten Kosten wird in Zelle J59, die Summe der tatsächlichen Kosten in J61 und die Gesamtdifferenz in J63 automatisch berechnet.","Kleidung",null,null,{"$f":"Körperpflege[[#This Row],[Erwartete Kosten]]-Körperpflege[[#This Row],[Tatsächliche Kosten]]","v":{"v":0,"d":"0.00 €"}},null,"SUMME DER ERWARTETEN KOSTEN",null,null,{"$f":"SUBTOTAL(109,Wohnen[Erwartete Kosten],Verkehrskosten[Erwartete Kosten],Versicherungen[Erwartete Kosten],Essen[Erwartete Kosten],Haustiere[Erwartete Kosten],Körperpflege[Erwartete Kosten],Unterhaltung[Erwartete Kosten],Darlehen[Erwartete Kosten],Steuern[Erwartete Kosten],Spareinlagen[Erwartete Kosten],Geschenke[Erwartete Kosten],Rechtskosten[Erwartete Kosten])","v":{"v":1195,"d":"1,195.00 €"}}]
[null,"Chemische Reinigung",null,null,{"$f":"Körperpflege[[#This Row],[Erwartete Kosten]]-Körperpflege[[#This Row],[Tatsächliche Kosten]]","v":{"v":0,"d":"0.00 €"}}]
[null,"Fitnesscenter",null,null,{"$f":"Körperpflege[[#This Row],[Erwartete Kosten]]-Körperpflege[[#This Row],[Tatsächliche Kosten]]","v":{"v":0,"d":"0.00 €"}},null,"SUMME DER TATSÄCHLICHEN KOSTEN",null,null,{"$f":"SUBTOTAL(109,Wohnen[Tatsächliche Kosten],Verkehrskosten[Tatsächliche Kosten],Versicherungen[Tatsächliche Kosten],Essen[Tatsächliche Kosten],Haustiere[Tatsächliche Kosten],Körperpflege[Tatsächliche Kosten],Unterhaltung[Tatsächliche Kosten],Darlehen[Tatsächliche Kosten],Steuern[Tatsächliche Kosten],Spareinlagen[Tatsächliche Kosten],Geschenke[Tatsächliche Kosten],Rechtskosten[Tatsächliche Kosten])","v":{"v":1236,"d":"1,236.00 €"}}]
[null,"Vereinsbeiträge",null,null,{"$f":"Körperpflege[[#This Row],[Erwartete Kosten]]-Körperpflege[[#This Row],[Tatsächliche Kosten]]","v":{"v":0,"d":"0.00 €"}}]
[null,"Sonstiges",null,null,{"$f":"Körperpflege[[#This Row],[Erwartete Kosten]]-Körperpflege[[#This Row],[Tatsächliche Kosten]]","v":{"v":0,"d":"0.00 €"}},null,"GESAMTDIFFERENZ",null,null,{"$f":"J59-J61","v":{"v":-41,"d":"-41.00 €"}}]
[null,"Zwischensumme",null,null,{"$f":"SUBTOTAL(109,Körperpflege[Differenz])","v":{"v":0,"d":"0.00 €"}}]